bitfinex/quotes_BTCUSD_20250614
["timestamp","ask_amount","ask_price","bid_price","bid_amount"]
[1749927515819,0.39308066,104970.0,104960.0,0.29848386]
[1749927516038,0.3768587,104970.0,104960.0,0.29848386]
[1749927516249,0.37745757,104970.0,104960.0,0.29848386]
[1749927516670,0.37745757,104970.0,104960.0,0.45920386]
[1749927516901,0.38698355,104970.0,104960.0,0.45920386]
[1749927517325,0.37745757,104970.0,104960.0,0.45920386]
[1749927517559,0.38698346,104970.0,104960.0,0.45920386]
[1749927518790,0.40603587,104970.0,104960.0,0.29848386]
[1749927519006,0.40603587,104970.0,104960.0,0.42910386]
[1749927519214,0.39651007,104970.0,104960.0,0.42910386]
[1749927519644,0.39651007,104970.0,104960.0,0.45920386]
[1749927519852,0.40541209,104970.0,104960.0,0.45920386]
[1749927520062,0.39651007,104970.0,104960.0,0.45920386]
[1749927520274,0.40541209,104970.0,104960.0,0.45920386]
[1749927520480,0.40541208,104970.0,104960.0,0.45920386]
[1749927520746,0.39651007,104970.0,104960.0,0.45920386]
[1749927521382,0.38698382,104970.0,104960.0,0.45920386]
[1749927521596,0.40541208,104970.0,104960.0,0.45920386]
[1749927521799,0.39651007,104970.0,104960.0,0.45920386]
[1749927521971,0.40541207,104970.0,104960.0,0.45920386]
[1749927522359,0.38698382,104970.0,104960.0,0.45920386]
[1749927522583,0.39651007,104970.0,104960.0,0.45920386]
[1749927523542,0.02793177,104970.0,104960.0,0.53380353]
[1749927523748,0.01840606,104970.0,104960.0,0.53380353]
[1749927524628,0.02793186,104970.0,104960.0,0.53380353]
[1749927524830,0.02793177,104970.0,104960.0,0.53380353]
[1749927525029,0.02793177,104970.0,104960.0,0.45920386]
[1749927525379,0.01840606,104970.0,104960.0,0.45920386]
[1749927525787,0.02793177,104970.0,104960.0,0.45920386]
[1749927526162,0.02793177,104970.0,104960.0,0.29848386]
[1749927526412,0.04698355,104970.0,104960.0,0.45920386]
[1749927526987,0.03745757,104970.0,104960.0,0.45920386]
[1749927527396,0.04698355,104970.0,104960.0,0.45920386]
[1749927527788,0.03745757,104970.0,104960.0,0.45920386]
[1749927527992,0.04698355,104970.0,104960.0,0.45920386]
[1749927528622,0.03745757,104970.0,104960.0,0.53380353]
[1749927528823,0.04698346,104970.0,104960.0,0.53380353]
[1749927529023,0.03745757,104970.0,104960.0,0.53380353]
[1749927529811,0.02793177,104970.0,104960.0,0.53380353]
[1749927530266,0.02793177,104970.0,104960.0,0.45920386]
[1749927530925,0.01840606,104970.0,104960.0,0.45920386]
[1749927532245,0.02793177,104970.0,104960.0,0.45920386]
[1749927534239,0.01840606,104970.0,104960.0,0.45920386]
[1749927535121,0.01840606,104970.0,104960.0,0.55544562]
[1749927535359,0.01840606,104970.0,104960.0,0.63004529]
[1749927536299,0.01840606,104970.0,104960.0,0.70566323]
[1749927540410,0.01840606,104970.0,104960.0,0.63004529]
[1749927542310,0.01840606,104970.0,104960.0,0.55540562]
[1749927543927,0.01840606,104970.0,104960.0,0.63540562]
[1749927544350,0.01840606,104970.0,104960.0,0.47472562]
[1749927544560,0.01840606,104970.0,104960.0,0.63540562]
[1749927546364,0.01840606,104970.0,104960.0,0.55540562]
[1749927547966,0.01840606,104970.0,104960.0,0.39472562]
[1749927548186,0.01840606,104970.0,104960.0,0.55540562]
[1749927550315,0.02793177,104970.0,104960.0,0.55540562]
[1749927550521,0.03745766,104970.0,104960.0,0.55540562]
[1749927550733,0.02793177,104970.0,104960.0,0.55540562]
[1749927551848,0.01840606,104970.0,104960.0,0.55540562]
[1749927553015,0.01840606,104970.0,104960.0,0.39472562]
[1749927553300,0.36793186,104970.0,104960.0,0.55540562]
[1749927553512,0.35840606,104970.0,104960.0,0.55540562]
[1749927559417,0.35840606,104970.0,104960.0,0.39472562]
[1749927559623,0.35840606,104970.0,104960.0,0.55536562]
[1749927559949,0.35840606,104970.0,104960.0,0.39472562]
[1749927560178,0.35840606,104970.0,104960.0,0.55536562]
[1749927560383,0.35840606,104970.0,104960.0,0.63536562]
[1749927561686,0.36793177,104970.0,104960.0,0.63536562]
[1749927562176,0.39651016,104970.0,104960.0,0.55536562]
[1749927562315,0.04200542,104970.0,104960.0,0.55536562]
[1749927562543,0.04698357,104970.0,104960.0,0.39472562]
[1749927562729,0.01342766,104970.0,104960.0,2.07491577]
[1749927562944,0.01342766,104970.0,104960.0,1.47877446]
[1749927563150,0.01342766,104970.0,104960.0,0.63071495]
[1749927563352,0.01342766,104970.0,104960.0,0.81925312]
[1749927563697,0.01342766,104970.0,104960.0,1.23401187]
[1749927563900,0.01342766,104970.0,104960.0,0.69766915]
[1749927564072,0.01342766,104970.0,104960.0,1.38162642]
[1749927564309,0.01342766,104970.0,104960.0,1.41417213]
[1749927564474,0.01342766,104970.0,104960.0,1.34156654]
[1749927564824,0.01342766,104970.0,104960.0,0.67160927]
[1749927565035,0.01342766,104970.0,104960.0,0.67156927]
[1749927565240,0.01342766,104970.0,104960.0,1.34952654]
[1749927565660,0.01342766,104970.0,104960.0,1.42952654]
[1749927565868,0.01342766,104970.0,104960.0,1.42152654]
[1749927566074,0.01342766,104970.0,104960.0,1.42752654]
[1749927566713,0.01342766,104970.0,104960.0,1.42748654]
[1749927566937,0.03323514,105000.0,104990.0,0.28396738]
[1749927567160,0.03323514,105000.0,104990.0,0.31530914]
[1749927567384,0.03821218,105000.0,104990.0,0.31530914]
[1749927568211,0.08149218,105000.0,104990.0,0.31530914]
[1749927568431,0.03821218,105000.0,104990.0,0.31530914]
[1749927568652,0.08149218,105000.0,104990.0,0.31530914]
[1749927569121,0.03821218,105000.0,104990.0,0.31530914]
[1749927569367,0.08149218,105000.0,104990.0,0.45201074]
[1749927570045,0.08149218,105000.0,104990.0,0.38020914]
[1749927570512,0.04773535,105000.0,104990.0,0.37068506]
[1749927570737,0.04773535,105000.0,104990.0,0.38020914]
[1749927570738,0.03323514,105000.0,104990.0,0.38020914]
[1749927570966,0.03821212,105000.0,104990.0,0.38020914]
[1749927573071,0.0001,105000.0,104990.0,1.05816641]
[1749927573290,0.0001,105000.0,104990.0,1.08670785]
[1749927573510,0.0001,105000.0,104990.0,1.1012487]
[1749927574245,0.0001,105000.0,104990.0,1.4001487]
[1749927574460,0.00497639,105020.0,105010.0,0.28122565]
[1749927574671,0.00511943,105020.0,105010.0,0.53830741]
[1749927575333,0.00511943,105020.0,105010.0,0.61392535]
[1749927575572,0.00014304,105020.0,105010.0,0.61392535]
[1749927576270,0.00014304,105020.0,105010.0,0.61492535]
[1749927576506,0.00014304,105020.0,105010.0,0.61692535]
[1749927581386,0.0623171,105050.0,105030.0,0.2626145]
[1749927581387,0.23367029,105050.0,105030.0,0.2626145]
[1749927581676,0.08359472,105050.0,105040.0,0.21896328]
[1749927582335,0.22848291,105040.0,105030.0,0.19039378]
[1749927582559,0.00952127,105020.0,105010.0,0.24140239]
[1749927582783,0.19994277,105030.0,105020.0,0.22852643]
[1749927582784,0.01904117,105030.0,105020.0,0.22852643]
[1749927583010,0.01904108,105030.0,105020.0,0.32476819]
[1749927583677,0.0285618,105030.0,105020.0,0.39649302]
[1749927583919,0.38730547,105040.0,105030.0,0.21898394]
[1749927584127,0.43117636,105040.0,105030.0,0.21898394]
[1749927584342,0.44680184,105040.0,105030.0,0.21898394]
[1749927584572,0.44962459,105040.0,105030.0,0.22850448]
[1749927584782,0.45632133,105040.0,105030.0,0.22850448]
[1749927584997,0.4502159,105040.0,105030.0,0.22850448]
[1749927585222,0.44739239,105040.0,105030.0,0.22850448]
[1749927585471,0.45914501,105040.0,105030.0,0.22850448]
[1749927585682,0.08135899,105040.0,105030.0,0.22850448]
[1749927585891,0.28269184,105040.0,105030.0,0.20946349]
[1749927586097,0.28469181,105040.0,105030.0,0.20946349]
[1749927586301,0.09428816,105040.0,105030.0,0.21898394]
[1749927586522,0.04207899,105040.0,105030.0,0.21898394]
[1749927586745,0.08535899,105040.0,105030.0,0.21898394]
[1749927586963,0.27576264,105040.0,105030.0,0.20946349]
[1749927587206,0.27576264,105040.0,105030.0,0.21898412]
[1749927587420,0.27576264,105040.0,105030.0,0.24924568]
[1749927587626,0.27576346,105040.0,105030.0,0.24924568]
[1749927587832,0.30341309,105040.0,105030.0,0.24924568]
[1749927588046,0.30341309,105040.0,105030.0,0.25876622]
[1749927588678,0.06020926,105040.0,105030.0,0.22850466]
[1749927588885,0.11300944,105040.0,105030.0,0.22850466]
[1749927589389,0.45300944,105040.0,105030.0,0.22850466]
[1749927589803,0.43396862,105040.0,105030.0,0.23802511]
[1749927590002,0.40972834,105040.0,105030.0,0.23802511]
[1749927590212,0.44344844,105040.0,105030.0,0.31364305]
[1749927590420,0.45296844,105040.0,105030.0,0.31364305]
[1749927591168,0.44344844,105040.0,105030.0,0.31364305]
[1749927591576,0.44144844,105040.0,105030.0,0.31364305]
[1749927592409,0.43944844,105040.0,105030.0,0.31364305]
[1749927592879,0.44896844,105040.0,105030.0,0.23802511]
[1749927593726,0.4645983,105040.0,105030.0,0.23802511]
[1749927593940,0.45566695,105040.0,105030.0,0.23802511]
[1749927594191,0.4645983,105040.0,105030.0,0.23802511]
[1749927594821,0.45566695,105040.0,105030.0,0.23802511]
[1749927595025,0.4645983,105040.0,105030.0,0.23802511]
[1749927595234,0.65500277,105040.0,105030.0,0.20946349]
[1749927595436,0.64771598,105040.0,105030.0,0.20946358]
[1749927595644,0.64771591,105040.0,105030.0,0.2189843]
[1749927595823,0.65441435,105040.0,105030.0,0.2189843]
[1749927596442,0.65441434,105040.0,105030.0,0.2189843]
[1749927596651,0.64948308,105040.0,105030.0,0.2189843]
[1749927596855,0.65669157,105040.0,105030.0,0.22850493]
[1749927597071,0.66339002,105040.0,105030.0,0.22850493]
[1749927597278,0.66339002,105040.0,105030.0,0.19042178]
[1749927597477,0.6538702,105040.0,105030.0,0.19994268]
[1749927597683,0.66797175,105040.0,105030.0,0.19994268]
[1749927597895,0.66573893,105040.0,105030.0,0.2094634]
[1749927598100,0.64493893,105040.0,105030.0,0.2094634]
[1749927598305,0.70009858,105040.0,105030.0,0.2094634]
[1749927598511,0.35904108,105030.0,105020.0,0.30572411]
[1749927598929,0.36797232,105030.0,105020.0,0.38134205]
[1749927599064,0.36797248,105030.0,105020.0,0.38134205]
[1749927599273,0.37749276,105030.0,105020.0,0.38134205]
[1749927599499,0.35904072,105030.0,105020.0,0.38134205]
[1749927599701,0.36797214,105030.0,105020.0,0.38134205]
[1749927599900,0.35845171,105030.0,105020.0,0.38134205]
[1749927600439,0.34893144,105030.0,105020.0,0.38134205]
[1749927600648,0.34893278,105030.0,105020.0,0.52257806]
[1749927600858,0.34,105030.0,105020.0,0.52257806]
[1749927601058,0.348933,105030.0,105020.0,0.52257806]
[1749927601296,0.34893271,105030.0,105020.0,0.52257806]
[1749927601516,0.04155666,105040.0,105030.0,0.28498394]
[1749927601959,0.03658098,105040.0,105030.0,0.28498394]
[1749927602870,0.0908341,105050.0,105040.0,0.2189631]
[1749927603719,0.08131501,105050.0,105040.0,0.2189631]
[1749927603986,0.22925418,105060.0,105050.0,0.20942362]
[1749927604219,4.6123813,105060.0,105050.0,0.20942371]
[1749927604433,4.43823223,105060.0,105050.0,0.21894262]
[1749927604627,4.23823223,105060.0,105050.0,0.22846144]
[1749927604889,4.35539622,105060.0,105050.0,0.22846144]
[1749927605119,4.55919616,105060.0,105050.0,0.21894262]
[1749927605354,4.05863613,105060.0,105050.0,0.21894262]
[1749927605593,4.04843671,105060.0,105050.0,0.28494262]
[1749927605815,4.09167653,105060.0,105050.0,0.29446144]
[1749927606052,4.08497684,105060.0,105050.0,0.29446144]
[1749927606512,4.09467639,105060.0,105050.0,0.29446144]
[1749927606970,4.10419468,105060.0,105050.0,0.30398017]
[1749927607453,4.08797675,105060.0,105050.0,0.30397963]
[1749927607669,4.10419474,105060.0,105050.0,0.25214226]
[1749927607895,4.12226755,105060.0,105050.0,0.21894226]
[1749927608119,4.1213154,105060.0,105050.0,0.21894226]
[1749927608368,4.09654297,105060.0,105050.0,0.21894226]
[1749927608613,4.26787446,105060.0,105050.0,0.21894289]
[1749927608837,4.27952767,105060.0,105050.0,0.21894289]
[1749927609061,4.08916026,105060.0,105050.0,0.21894289]
[1749927609530,4.61284981,105060.0,105050.0,0.21894289]
[1749927609747,4.61952765,105060.0,105050.0,0.21894289]
[1749927609965,4.61284981,105060.0,105050.0,0.21894289]
[1749927610425,4.61952765,105060.0,105050.0,0.20942398]
[1749927610687,4.61952765,105060.0,105050.0,0.21894307]
[1749927610947,4.61284981,105060.0,105050.0,0.22846207]
[1749927611195,4.61952769,105060.0,105050.0,0.22846207]
[1749927611399,4.61952769,105060.0,105050.0,0.23798098]
[1749927611620,4.61284981,105060.0,105050.0,0.23798098]
[1749927611831,4.61284981,105060.0,105050.0,0.23798053]
[1749927612043,4.61952762,105060.0,105050.0,0.2189428]
[1749927612296,4.61284981,105060.0,105050.0,0.22846171]
[1749927612689,4.61952766,105060.0,105050.0,0.22846171]
[1749927613102,4.61952767,105060.0,105050.0,0.22846171]
[1749927613710,4.61284981,105060.0,105050.0,0.22846171]
[1749927613899,4.61952767,105060.0,105050.0,0.2189428]
[1749927614106,4.77336981,105060.0,105050.0,0.2846428]
[1749927614317,4.78004763,105060.0,105050.0,0.29416171]
[1749927614515,4.78004763,105060.0,105050.0,0.22846171]
[1749927614973,4.78227357,105060.0,105050.0,0.22846171]
[1749927615185,4.78227355,105060.0,105050.0,0.22846171]
[1749927615333,4.78895139,105060.0,105050.0,0.22846171]
[1749927615532,4.78895141,105060.0,105050.0,0.22846171]
[1749927615735,4.77336981,105060.0,105050.0,0.22846171]
[1749927615919,4.78895141,105060.0,105050.0,0.22846171]
[1749927616330,4.7889514,105060.0,105050.0,0.22846171]
[1749927616545,4.77336981,105060.0,105050.0,0.22846171]
[1749927616760,4.78230273,105060.0,105050.0,0.29486171]
[1749927617190,4.78006949,105060.0,105050.0,0.29486171]
[1749927617401,4.7890024,105060.0,105050.0,0.29486171]
[1749927617604,0.08439883,105060.0,105050.0,0.61723044]
[1749927617815,0.09333096,105060.0,105050.0,0.61723044]
[1749927618021,0.08439883,105060.0,105050.0,0.61723044]
[1749927618224,0.09333082,105060.0,105050.0,0.61723044]
[1749927618652,0.09033076,105060.0,105050.0,0.61723044]
[1749927618853,0.08533073,105060.0,105050.0,0.61723044]
[1749927619062,0.08533073,105060.0,105050.0,0.45771044]
[1749927619274,0.08533073,105060.0,105050.0,0.56214211]
[1749927619480,0.42533066,105060.0,105050.0,0.56214211]
[1749927619734,0.42533065,105060.0,105050.0,0.56214211]
[1749927620942,0.42533064,105060.0,105050.0,0.56214211]
[1749927621172,0.41639883,105060.0,105050.0,0.56214211]
[1749927621431,0.42533061,105060.0,105050.0,0.56214211]
[1749927621685,0.07639883,105060.0,105050.0,0.64495848]
[1749927621933,0.08533054,105060.0,105050.0,0.64495848]
[1749927622824,0.07639883,105060.0,105050.0,0.64495848]
[1749927623035,0.07639883,105060.0,105050.0,0.48443848]
[1749927623036,0.08533041,105060.0,105050.0,0.48443848]
[1749927623242,0.07142348,105060.0,105050.0,0.64491848]
[1749927623521,0.02818348,105060.0,105050.0,0.64491848]
[1749927624106,0.0001429,105060.0,105050.0,0.64491848]
[1749927624892,0.0001429,105060.0,105050.0,0.64391848]
[1749927625138,0.0001429,105060.0,105050.0,0.64691848]
[1749927625375,0.0001429,105060.0,105050.0,0.64791848]
[1749927627845,0.0001429,105060.0,105050.0,0.40462211]
[1749927628046,0.00966054,105060.0,105050.0,0.40462211]
[1749927628231,0.01917827,105060.0,105050.0,0.56510211]
[1749927628373,0.00966045,105060.0,105050.0,0.56510211]
[1749927628982,0.02869618,105060.0,105050.0,0.39210347]
[1749927629195,0.02869618,105060.0,105050.0,0.21994253]
[1749927629196,0.23751375,105060.0,105050.0,0.21994253]
[1749927629406,0.04714626,105060.0,105050.0,0.22946117]
[1749927629607,0.04714643,105060.0,105050.0,0.22946117]
[1749927629808,0.04714643,105060.0,105050.0,0.22846117]
[1749927630021,0.05666471,105060.0,105050.0,0.22846117]
[1749927630245,0.04773263,105060.0,105050.0,0.22846117]
[1749927630448,0.04714644,105060.0,105050.0,0.22846117]
[1749927630655,0.02855646,105050.0,105040.0,0.21896328]
[1749927630857,0.01903737,105050.0,105040.0,0.3889631]
[1749927631056,0.02855637,105050.0,105040.0,0.3889631]
[1749927631480,0.03807546,105050.0,105040.0,0.3889631]
[1749927631631,0.04759464,105050.0,105040.0,0.4206631]
[1749927631829,0.0285589,105040.0,105030.0,0.27116259]
[1749927632040,0.06223899,105040.0,105030.0,0.53740507]
[1749927632245,0.05271936,105040.0,105030.0,0.37692507]
[1749927632448,0.0622389,105040.0,105030.0,0.53740507]
[1749927632728,0.01903737,105050.0,105040.0,0.2806631]
[1749927632939,0.58304575,105060.0,105050.0,0.27112362]
[1749927633094,0.62906276,105060.0,105050.0,0.27112362]
[1749927633273,0.57693016,105060.0,105050.0,0.27112362]
[1749927633480,0.60896438,105060.0,105050.0,0.27112362]
[1749927633708,0.6195448,105060.0,105050.0,0.27112362]
[1749927633915,0.61731154,105060.0,105050.0,0.27112362]
[1749927634121,0.62824455,105060.0,105050.0,0.27112362]
[1749927634332,0.36117845,105060.0,105050.0,0.29016099]
[1749927634503,0.09987506,105060.0,105050.0,0.29016099]
[1749927634704,0.07589627,105060.0,105050.0,0.29016099]
[1749927634883,0.09434669,105060.0,105050.0,0.29016099]
[1749927635105,0.07531049,105060.0,105050.0,0.29016099]
[1749927635314,0.07589618,105060.0,105050.0,0.29016099]
[1749927635511,0.02259266,105060.0,105050.0,0.47228109]
[1749927635713,0.06637827,105060.0,105050.0,0.47228109]
[1749927635914,0.0041429,105060.0,105050.0,0.54688275]
[1749927638162,0.01366045,105060.0,105050.0,0.54688275]
[1749927639235,0.0041429,105060.0,105050.0,0.54688275]
[1749927639442,0.0041429,105060.0,105050.0,0.38640275]
[1749927639651,0.0041429,105060.0,105050.0,0.54688275]
[1749927639853,0.0041429,105060.0,105050.0,0.62912513]
[1749927640058,0.0041429,105060.0,105050.0,0.46864513]
[1749927640212,0.0041429,105060.0,105050.0,0.62912513]
[1749927640595,0.0041429,105060.0,105050.0,0.46864513]
[1749927640811,0.0041429,105060.0,105050.0,0.62912513]
[1749927641022,0.0041429,105060.0,105050.0,0.46864513]
[1749927641228,0.0041429,105060.0,105050.0,0.62908513]
[1749927643793,0.0041429,105060.0,105050.0,0.54684275]
[1749927644234,0.03269636,105060.0,105050.0,0.38640275]
[1749927644453,0.02317818,105060.0,105050.0,0.45060099]
[1749927644891,0.04221409,105060.0,105050.0,0.29016099]
[1749927645110,0.042214,105060.0,105050.0,0.45060099]
[1749927645764,0.01366045,105060.0,105050.0,0.45060099]
[1749927645984,0.05686045,105060.0,105050.0,0.61945695]
[1749927646198,0.0041429,105060.0,105050.0,0.61945695]
[1749927646634,0.0041429,105060.0,105050.0,0.54684275]
[1749927647297,0.01366054,105060.0,105050.0,0.54684275]
[1749927647526,0.0041429,105060.0,105050.0,0.54684275]
[1749927648162,0.01366045,105060.0,105050.0,0.54684275]
[1749927649308,0.02317818,105060.0,105050.0,0.54684275]
[1749927649519,0.0041429,105060.0,105050.0,0.62908113]
[1749927649731,0.01366054,105060.0,105050.0,0.62908113]
[1749927650627,0.02317827,105060.0,105050.0,0.62908113]
[1749927650848,0.02317827,105060.0,105050.0,0.54684275]
[1749927651063,0.02317827,105060.0,105050.0,0.38640275]
[1749927651269,0.02317827,105060.0,105050.0,0.54684275]
[1749927651482,0.01366054,105060.0,105050.0,0.54684275]
[1749927651918,0.02317827,105060.0,105050.0,0.54684275]
[1749927652141,4.15064962,105050.0,105040.0,0.25390365]
[1749927652359,0.04642222,105050.0,105040.0,0.37870504]
[1749927652575,0.01903737,105050.0,105040.0,0.38822458]
[1749927652808,0.02855646,105050.0,105040.0,0.38822458]
[1749927653019,0.03807564,105050.0,105040.0,0.37870504]
[1749927653247,0.03807564,105050.0,105040.0,0.38822477]
[1749927653666,0.21894262,105050.0,105040.0,0.3596655]
[1749927653869,0.21894262,105050.0,105040.0,0.53914504]
[1749927654532,0.21894262,105050.0,105040.0,0.37870504]
[1749927654745,0.21894262,105050.0,105040.0,0.53914504]
[1749927654955,0.02855709,105050.0,105040.0,0.54866458]
[1749927655615,0.01903791,105050.0,105040.0,0.54866458]
[1749927655844,0.34,105050.0,105040.0,0.54866458]
[1749927656063,0.38583481,105050.0,105040.0,0.62352525]
[1749927656291,0.34893245,105050.0,105040.0,0.62352525]
[1749927656514,0.34,105050.0,105040.0,0.62352525]
[1749927656766,0.0001429,105060.0,105050.0,0.27252362]
[1749927656977,0.23751412,105060.0,105050.0,0.37938262]
[1749927657198,0.22858213,105060.0,105050.0,0.37938262]
[1749927657416,0.22858213,105060.0,105050.0,0.37938271]
[1749927657625,0.21906458,105060.0,105050.0,0.37938271]
[1749927657840,0.22799703,105060.0,105050.0,0.38890153]
[1749927658086,0.21906458,105060.0,105050.0,0.39842026]
[1749927658296,0.22799703,105060.0,105050.0,0.39842026]
[1749927658508,0.22799711,105060.0,105050.0,0.39842026]
[1749927658722,0.22799713,105060.0,105050.0,0.39842026]
[1749927658938,0.22799705,105060.0,105050.0,0.39842026]
[1749927659149,0.21906458,105060.0,105050.0,0.39842026]
[1749927659357,0.22306458,105060.0,105050.0,0.39842026]
[1749927659568,0.23199703,105060.0,105050.0,0.46152026]
[1749927659773,0.23199712,105060.0,105050.0,0.46152026]
[1749927659978,0.23199713,105060.0,105050.0,0.46152026]
[1749927660184,0.231997,105060.0,105050.0,0.46152026]
[1749927660405,0.23199713,105060.0,105050.0,0.46152026]
[1749927660852,0.04162963,105060.0,105050.0,0.46151972]
[1749927661064,0.22306458,105060.0,105050.0,0.45200108]
[1749927661281,0.23199699,105060.0,105050.0,0.45200108]
[1749927661733,0.23199699,105060.0,105050.0,0.46151972]
[1749927661734,0.0041429,105060.0,105050.0,0.46151972]
[1749927661995,0.02317818,105060.0,105050.0,0.46151972]
[1749927662211,0.04162836,105060.0,105050.0,0.46151972]
[1749927662426,0.04162833,105060.0,105050.0,0.46151972]
[1749927662638,0.05114654,105060.0,105050.0,0.46151972]
[1749927662847,0.03269618,105060.0,105050.0,0.46151972]
[1749927663940,0.04221427,105060.0,105050.0,0.46151972]
[1749927664855,0.2325823,105060.0,105050.0,0.44248235]
[1749927665307,0.2325823,105060.0,105050.0,0.45200108]
[1749927665519,0.0422149,105060.0,105050.0,0.46151972]
[1749927665738,0.03269672,105060.0,105050.0,0.46151972]
[1749927666792,0.02317863,105060.0,105050.0,0.46151972]
[1749927667000,0.02317854,105060.0,105050.0,0.46151972]
[1749927667205,0.02317836,105060.0,105050.0,0.46151972]
[1749927667410,0.01366054,105060.0,105050.0,0.46151972]
[1749927667829,0.02317836,105060.0,105050.0,0.46151972]
[1749927668040,0.01366054,105060.0,105050.0,0.46151972]
[1749927668253,0.03269636,105060.0,105050.0,0.45200108]
[1749927668479,0.03269627,105060.0,105050.0,0.46151972]
[1749927668686,0.02317827,105060.0,105050.0,0.46151972]
[1749927668894,0.04221436,105060.0,105050.0,0.46151972]
[1749927669493,0.04221427,105060.0,105050.0,0.46151972]
[1749927669919,0.03269618,105060.0,105050.0,0.46151972]
[1749927670742,0.04221427,105060.0,105050.0,0.30107972]
[1749927670970,0.03269618,105060.0,105050.0,0.46147972]
[1749927671823,0.02317827,105060.0,105050.0,0.46147972]
[1749927672462,0.03269618,105060.0,105050.0,0.46147972]
[1749927672884,0.02317818,105060.0,105050.0,0.46147972]
[1749927673094,0.032696,105060.0,105050.0,0.46147972]
[1749927674135,0.23258212,105060.0,105050.0,0.28204235]
[1749927674345,0.03269654,105060.0,105050.0,0.45196099]
[1749927674772,0.02317854,105060.0,105050.0,0.52582163]
[1749927675200,0.02317845,105060.0,105050.0,0.52582163]
[1749927675622,0.02317845,105060.0,105050.0,0.45196099]
[1749927677133,0.0041429,105060.0,105050.0,0.38780275]
[1749927677375,0.0041429,105060.0,105050.0,0.54816275]
[1749927677609,0.0041429,105060.0,105050.0,0.57665862]
[1749927677832,0.0041429,105060.0,105050.0,0.54816275]
[1749927678271,0.0041429,105060.0,105050.0,0.63623723]
[1749927678738,0.0041429,105060.0,105050.0,0.54816275]
[1749927684361,0.3441429,105060.0,105050.0,0.37828411]
[1749927684584,0.3441429,105060.0,105050.0,0.28662729]
[1749927684585,0.36317899,105060.0,105050.0,0.28662729]
[1749927684824,0.36317845,105060.0,105050.0,0.20942344]
[1749927685038,0.37939562,105060.0,105050.0,0.22846081]
[1749927685256,0.40043464,105060.0,105050.0,0.36978353]
[1749927685470,0.58410351,105060.0,105050.0,0.19038553]
[1749927685694,0.54942344,105050.0,105040.0,0.19040365]
[1749927685911,0.35903737,105050.0,105040.0,0.46604513]
[1749927686157,0.35903728,105050.0,105040.0,0.31520467]
[1749927686373,0.35903728,105050.0,105040.0,0.19040365]
[1749927686374,4.52872499,105050.0,105040.0,0.19040365]
[1749927686584,4.54000644,105050.0,105040.0,0.20944356]
[1749927686795,4.53048771,105050.0,105040.0,0.20944365]
[1749927687293,4.38430405,105050.0,105040.0,0.21896328]
[1749927687575,4.32882055,105050.0,105040.0,0.21896328]
[1749927687826,4.33552065,105050.0,105040.0,0.228483]
[1749927688066,4.33552056,105050.0,105040.0,0.23800254]
[1749927688309,4.3193011,105050.0,105040.0,0.23800254]
[1749927688557,4.32600109,105050.0,105040.0,0.23800254]
[1749927688827,4.33552009,105050.0,105040.0,0.23800254]
[1749927688946,4.3193011,105050.0,105040.0,0.23800254]
[1749927689175,4.32600107,105050.0,105040.0,0.30240254]
[1749927689376,0.36573697,105050.0,105040.0,0.30240254]
[1749927689573,0.34669964,105050.0,105040.0,0.30240254]
[1749927689774,0.34,105050.0,105040.0,0.30240254]
[1749927691780,0.34,105050.0,105040.0,0.46276254]
[1749927693955,0.34951846,105050.0,105040.0,0.46276254]
[1749927694588,0.36855583,105050.0,105040.0,0.30240254]
[1749927694800,0.35903701,105050.0,105040.0,0.45324291]
[1749927695657,0.3657367,105050.0,105040.0,0.45324291]
[1749927695860,0.37525531,105050.0,105040.0,0.45324291]
[1749927696060,0.3657367,105050.0,105040.0,0.45324291]
[1749927696323,0.35621815,105050.0,105040.0,0.29288291]
[1749927696536,0.3657367,105050.0,105040.0,0.45324291]
[1749927696949,0.36573673,105050.0,105040.0,0.29288291]
[1749927697157,0.36573674,105050.0,105040.0,0.45324291]
[1749927697575,0.36573674,105050.0,105040.0,0.29288291]
[1749927697776,0.36573673,105050.0,105040.0,0.45324291]
[1749927697985,0.37525546,105050.0,105040.0,0.29288291]
[1749927698197,0.38477437,105050.0,105040.0,0.29288291]
[1749927698410,0.37525645,105050.0,105040.0,0.19992374]
[1749927698619,0.37807591,105050.0,105040.0,0.22848282]
[1749927698847,0.56564244,105050.0,105040.0,0.19992374]
[1749927699087,0.55894271,105050.0,105040.0,0.20944356]
[1749927699321,0.55894271,105050.0,105040.0,0.21896328]
[1749927699551,0.58585744,105050.0,105040.0,0.20944356]
[1749927699777,0.36855718,105050.0,105040.0,0.2189631]
[1749927700001,0.37525698,105050.0,105040.0,0.2189631]
[1749927700308,0.38477625,105050.0,105040.0,0.2189631]
[1749927700755,0.57516178,105050.0,105040.0,0.20944356]
[1749927700964,0.55612378,105050.0,105040.0,0.19992374]
[1749927701168,0.55612379,105050.0,105040.0,0.20944365]
[1749927701397,0.55612379,105050.0,105040.0,0.21896328]
[1749927701601,0.54942398,105050.0,105040.0,0.21896328]
[1749927701811,4.50686879,105050.0,105040.0,0.20944365]
[1749927702015,4.50686881,105050.0,105040.0,0.21896347]
[1749927702225,4.53570767,105050.0,105040.0,0.20944356]
[1749927702432,4.50016898,105050.0,105040.0,0.21896319]
[1749927702636,4.50686881,105050.0,105040.0,0.20944356]
[1749927703067,4.50016898,105050.0,105040.0,0.21896328]
[1749927703275,4.50686881,105050.0,105040.0,0.21896328]
[1749927703482,4.50686881,105050.0,105040.0,0.19992374]
[1749927703688,4.50686897,105050.0,105040.0,0.20944365]
[1749927703888,0.34,105040.0,105030.0,0.43422277]
[1749927704134,0.35903926,105040.0,105030.0,0.53046453]
[1749927704349,0.56848227,105040.0,105030.0,0.37010507]
[1749927704564,0.36855862,105040.0,105030.0,0.37962552]
[1749927704773,0.34,105040.0,105030.0,0.37962552]
[1749927704986,0.34,105040.0,105030.0,0.53998552]
[1749927705199,0.34,105040.0,105030.0,0.60455386]
[1749927706063,0.34,105040.0,105030.0,0.60655386]
[1749927706739,0.34,105040.0,105030.0,0.60755386]
[1749927706951,0.20500404,105060.0,105050.0,0.28254226]
[1749927706952,4.52793743,105060.0,105050.0,0.28254226]
[1749927707164,4.56464434,105060.0,105050.0,0.27302362]
[1749927707392,4.33111686,105060.0,105050.0,0.28254244]
[1749927707609,0.35181698,105060.0,105050.0,0.29206108]
[1749927707842,0.35181683,105060.0,105050.0,0.29206108]
[1749927708057,0.35181668,105060.0,105050.0,0.29206108]
[1749927708475,0.34511779,105060.0,105050.0,0.29206108]
[1749927708685,0.35181678,105060.0,105050.0,0.29206108]
[1749927708891,0.35181682,105060.0,105050.0,0.45242108]
[1749927709083,0.34711779,105060.0,105050.0,0.45242108]
[1749927709304,0.3538168,105060.0,105050.0,0.45242108]
[1749927709555,0.34711779,105060.0,105050.0,0.45242108]
[1749927709761,0.34911779,105060.0,105050.0,0.45242108]
[1749927709968,0.35863534,105060.0,105050.0,0.54866284]
[1749927710177,0.34911779,105060.0,105050.0,0.54866284]
[1749927710391,0.35581674,105060.0,105050.0,0.38830284]
[1749927710606,0.34911779,105060.0,105050.0,0.54866284]
[1749927710811,0.35581673,105060.0,105050.0,0.54866284]
[1749927711427,0.36533428,105060.0,105050.0,0.54866284]